[Event "Live Chess"]
[Site "Chess.com"]
[Date "2024.06.02"]
[Round "-"]
[White "resipsa6"]
[Black "gmnorfolk"]
[Result "1/2-1/2"]
[WhiteElo "2026"]
[BlackElo "2149"]
[TimeControl "300"]
[EndTime "6:34:08 PDT"]
[Termination "Game drawn by repetition"]

1. Nf3 {[%clk 0:04:59.1]} 1... Nf6 {[%clk 0:04:58]} 2. g3 {[%clk 0:04:58.3]}
2... g6 {[%clk 0:04:56.7]} 3. Bg2 {[%clk 0:04:57.3]} 3... Bg7 {[%clk 0:04:56.4]}
4. O-O {[%clk 0:04:57]} 4... O-O {[%clk 0:04:56]} 5. Nc3 {[%clk 0:04:56.4]} 5...
d5 {[%clk 0:04:54.9]} 6. d4 {[%clk 0:04:55.5]} 6... c6 {[%clk 0:04:48.4]} 7. Bg5
{[%clk 0:04:53.5]} 7... h6 {[%clk 0:04:46.5]} 8. Be3 {[%clk 0:04:52.5]} 8... Ng4
{[%clk 0:04:44]} 9. Bf4 {[%clk 0:04:51.5]} 9... Nd7 {[%clk 0:04:42]} 10. h3
{[%clk 0:04:49.2]} 10... e5 {[%clk 0:04:41]} 11. dxe5 {[%clk 0:04:42.9]} 11...
Ngxe5 {[%clk 0:04:36.2]} 12. Nxe5 {[%clk 0:04:39.6]} 12... Nxe5 {[%clk
0:04:35.3]} 13. Bxe5 {[%clk 0:04:38.5]} 13... Bxe5 {[%clk 0:04:33.5]} 14. e3
{[%clk 0:04:36.9]} 14... Qf6 {[%clk 0:04:28.8]} 15. Qd2 {[%clk 0:04:34.7]} 15...
Be6 {[%clk 0:04:21.8]} 16. e4 {[%clk 0:04:02.6]} 16... Bxc3 {[%clk 0:04:18.8]}
17. bxc3 {[%clk 0:03:59]} 17... dxe4 {[%clk 0:04:16.7]} 18. Qxh6 {[%clk
0:03:54.8]} 18... Qxc3 {[%clk 0:04:13.1]} 19. Bxe4 {[%clk 0:03:49.4]} 19... Qg7
{[%clk 0:04:11.3]} 20. Qxg7+ {[%clk 0:03:48.1]} 20... Kxg7 {[%clk 0:04:09]} 21.
Kg2 {[%clk 0:03:47.5]} 21... Rfd8 {[%clk 0:04:07.2]} 22. Rab1 {[%clk 0:03:33.7]}
22... Rab8 {[%clk 0:04:04.7]} 23. a3 {[%clk 0:03:32.6]} 23... Bd5 {[%clk
0:03:58.8]} 24. Bxd5 {[%clk 0:03:30.8]} 24... Rxd5 {[%clk 0:03:57.4]} 25. Rfd1
{[%clk 0:03:30.2]} 25... Kf6 {[%clk 0:03:27]} 26. Rxd5 {[%clk 0:03:23.4]} 26...
cxd5 {[%clk 0:03:25.6]} 27. Rd1 {[%clk 0:03:21.3]} 27... Rc8 {[%clk 0:03:16.4]}
28. Rxd5 {[%clk 0:03:16.9]} 28... Rxc2 {[%clk 0:03:14.3]} 29. Rd7 {[%clk
0:03:15.4]} 29... Rb2 {[%clk 0:03:11.5]} 30. g4 {[%clk 0:03:08.6]} 30... g5
{[%clk 0:03:07.5]} 31. Rd6+ {[%clk 0:02:56.5]} 31... Kg7 {[%clk 0:03:04.6]} 32.
Rd3 {[%clk 0:02:49.9]} 32... b5 {[%clk 0:02:58.4]} 33. Kg3 {[%clk 0:02:48.4]}
33... a5 {[%clk 0:02:57.2]} 34. f4 {[%clk 0:02:43.6]} 34... a4 {[%clk 0:02:50]}
35. Rd5 {[%clk 0:02:28]} 35... Rb3+ {[%clk 0:02:45.1]} 36. Kg2 {[%clk
0:02:22.9]} 36... gxf4 {[%clk 0:02:44.1]} 37. h4 {[%clk 0:02:17.9]} 37... Rg3+
{[%clk 0:01:39.6]} 38. Kf2 {[%clk 0:02:13.8]} 38... Rxg4 {[%clk 0:01:25.9]} 39.
Rxb5 {[%clk 0:02:12.2]} 39... Rxh4 {[%clk 0:01:21.7]} 40. Rb4 {[%clk 0:02:11.1]}
40... Rh2+ {[%clk 0:01:16.7]} 41. Kf1 {[%clk 0:01:56.5]} 41... Ra2 {[%clk
0:01:07.9]} 42. Rxa4 {[%clk 0:01:54.6]} 42... f3 {[%clk 0:01:06.8]} 43. Rf4
{[%clk 0:01:40.2]} 43... Rxa3 {[%clk 0:00:59]} 44. Kf2 {[%clk 0:01:38.3]} 44...
Kg6 {[%clk 0:00:58.2]} 45. Rg4+ {[%clk 0:01:27]} 45... Kf5 {[%clk 0:00:55.3]}
46. Rb4 {[%clk 0:01:19.6]} 46... f6 {[%clk 0:00:50.7]} 47. Rb5+ {[%clk
0:01:16.1]} 47... Kg4 {[%clk 0:00:46.4]} 48. Rb4+ {[%clk 0:01:15]} 48... Kg5
{[%clk 0:00:45.4]} 49. Rc4 {[%clk 0:01:12]} 49... f5 {[%clk 0:00:42]} 50. Rb4
{[%clk 0:01:10.7]} 50... Rc3 {[%clk 0:00:36.5]} 51. Ra4 {[%clk 0:01:08.2]} 51...
f4 {[%clk 0:00:31.3]} 52. Ra8 {[%clk 0:01:05.8]} 52... Kg4 {[%clk 0:00:29.9]}
53. Rg8+ {[%clk 0:01:04.7]} 53... Kf5 {[%clk 0:00:28.5]} 54. Rf8+ {[%clk
0:01:04]} 54... Ke4 {[%clk 0:00:26.9]} 55. Re8+ {[%clk 0:01:03.3]} 55... Kd4
{[%clk 0:00:24.3]} 56. Rd8+ {[%clk 0:01:02.4]} 56... Kc4 {[%clk 0:00:23.7]} 57.
Rc8+ {[%clk 0:01:01.5]} 57... Kb4 {[%clk 0:00:23.2]} 58. Rb8+ {[%clk 0:00:59]}
58... Ka3 {[%clk 0:00:20.1]} 59. Ra8+ {[%clk 0:00:58]} 59... Kb2 {[%clk
0:00:19.3]} 60. Rb8+ {[%clk 0:00:57.4]} 60... Kc2 {[%clk 0:00:18.9]} 61. Rb7
{[%clk 0:00:55]} 61... Kd2 {[%clk 0:00:18.3]} 62. Rd7+ {[%clk 0:00:53.9]} 62...
Rd3 {[%clk 0:00:17.4]} 63. Rb7 {[%clk 0:00:52.8]} 63... Kd1 {[%clk 0:00:16.5]}
64. Rb1+ {[%clk 0:00:51]} 64... Kc2 {[%clk 0:00:15]} 65. Rb8 {[%clk 0:00:49.4]}
65... Rb3 {[%clk 0:00:14.2]} 66. Rc8+ {[%clk 0:00:47.8]} 66... Kd3 {[%clk
0:00:13.5]} 67. Rd8+ {[%clk 0:00:46.7]} 67... Ke4 {[%clk 0:00:12.9]} 68. Re8+
{[%clk 0:00:46.2]} 68... Kf5 {[%clk 0:00:12.7]} 69. Rf8+ {[%clk 0:00:45.6]}
69... Kg4 {[%clk 0:00:12.5]} 70. Rg8+ {[%clk 0:00:45]} 70... Kh5 {[%clk
0:00:11.2]} 71. Rh8+ {[%clk 0:00:41.2]} 71... Kg6 {[%clk 0:00:10.7]} 72. Rg8+
{[%clk 0:00:40.3]} 72... Kf5 {[%clk 0:00:10.6]} 73. Ra8 {[%clk 0:00:39.6]} 73...
Ke4 {[%clk 0:00:10.5]} 74. Re8+ {[%clk 0:00:38.6]} 74... Kf5 {[%clk 0:00:10.1]}
75. Ra8 {[%clk 0:00:37.9]} 75... Ke4 {[%clk 0:00:09.7]} 76. Rc8 {[%clk
0:00:36.4]} 76... Kf5 {[%clk 0:00:09.6]} 77. Rc7 {[%clk 0:00:35.7]} 77... Ke4
{[%clk 0:00:09.5]} 78. Re7+ {[%clk 0:00:34.5]} 78... Kf5 {[%clk 0:00:09.4]} 79.
Rf7+ {[%clk 0:00:33.8]} 79... Kg4 {[%clk 0:00:09]} 80. Rg7+ {[%clk 0:00:33.2]}
80... Kf5 {[%clk 0:00:08.7]} 81. Rf7+ {[%clk 0:00:32.6]} 81... Ke4 {[%clk
0:00:08.4]} 82. Re7+ {[%clk 0:00:30.5]} 82... Kf5 {[%clk 0:00:08.2]} 83. Re8
{[%clk 0:00:29.7]} 83... Kg4 {[%clk 0:00:07.7]} 84. Rg8+ {[%clk 0:00:28.2]}
84... Kf5 {[%clk 0:00:07.6]} 85. Ra8 {[%clk 0:00:26.1]} 1/2-1/2

[Event "Live Chess"]
[Site "Chess.com"]
[Date "2024.06.02"]
[Round "-"]
[White "14141409"]
[Black "upoe610"]
[Result "1-0"]
[WhiteElo "2541"]
[BlackElo "2153"]
[TimeControl "300"]
[EndTime "6:34:14 PDT"]
[Termination "14141409 won by checkmate"]

1. e4 {[%clk 0:04:56.4]} 1... e5 {[%clk 0:04:58.9]} 2. Nf3 {[%clk 0:04:51.9]}
2... Nc6 {[%clk 0:04:56.9]} 3. Bc4 {[%clk 0:04:50.7]} 3... Nf6 {[%clk
0:04:55.4]} 4. d4 {[%clk 0:04:49]} 4... exd4 {[%clk 0:04:54.4]} 5. e5 {[%clk
0:04:48.6]} 5... Ne4 {[%clk 0:04:51.3]} 6. O-O {[%clk 0:04:45.3]} 6... Be7
{[%clk 0:04:49.6]} 7. Re1 {[%clk 0:04:43.7]} 7... d5 {[%clk 0:04:47.4]} 8. Bb5
{[%clk 0:04:38.5]} 8... O-O {[%clk 0:04:43.4]} 9. Bxc6 {[%clk 0:04:37.4]} 9...
bxc6 {[%clk 0:04:42.1]} 10. Nxd4 {[%clk 0:04:37]} 10... c5 {[%clk 0:04:41.3]}
11. Nc6 {[%clk 0:04:35.6]} 11... Qe8 {[%clk 0:04:39]} 12. Nxe7+ {[%clk
0:04:34.1]} 12... Qxe7 {[%clk 0:04:37.3]} 13. Qxd5 {[%clk 0:04:33.7]} 13... Bf5
{[%clk 0:04:36.4]} 14. f3 {[%clk 0:04:15.8]} 14... Rad8 {[%clk 0:04:33.8]} 15.
Qc4 {[%clk 0:04:13.4]} 15... Rd4 {[%clk 0:04:28.1]} 16. Qf1 {[%clk 0:04:10.6]}
16... Ng5 {[%clk 0:04:23.6]} 17. Nc3 {[%clk 0:04:08.5]} 17... Ne6 {[%clk
0:04:20.1]} 18. Be3 {[%clk 0:04:07.1]} 18... Rd7 {[%clk 0:04:17.6]} 19. Qf2
{[%clk 0:04:05.9]} 19... Nd4 {[%clk 0:04:16.5]} 20. Bxd4 {[%clk 0:04:02.9]}
20... cxd4 {[%clk 0:04:15.5]} 21. Ne4 {[%clk 0:03:58.7]} 21... Qxe5 {[%clk
0:04:12]} 22. Qh4 {[%clk 0:03:57]} 22... Bxe4 {[%clk 0:04:07.1]} 23. Rxe4 {[%clk
0:03:55.2]} 23... Qc5 {[%clk 0:04:05.9]} 24. Kh1 {[%clk 0:03:49.9]} 24... Qxc2
{[%clk 0:04:03.6]} 25. Rxd4 {[%clk 0:03:44.4]} 25... Qxb2 {[%clk 0:04:02.2]} 26.
Rad1 {[%clk 0:03:43.8]} 26... Rxd4 {[%clk 0:03:58.3]} 27. Qxd4 {[%clk
0:03:43.3]} 27... Qxa2 {[%clk 0:03:57.2]} 28. Qc5 {[%clk 0:03:39.6]} 28... h6
{[%clk 0:03:51.9]} 29. Qxc7 {[%clk 0:03:37.7]} 29... a5 {[%clk 0:03:50.4]} 30.
h3 {[%clk 0:03:35.2]} 30... a4 {[%clk 0:03:48.7]} 31. Rd8 {[%clk 0:03:33.7]}
31... Rxd8 {[%clk 0:03:46.1]} 32. Qxd8+ {[%clk 0:03:32.3]} 32... Kh7 {[%clk
0:03:45.6]} 33. Qd3+ {[%clk 0:03:25.7]} 33... g6 {[%clk 0:03:44.6]} 34. h4
{[%clk 0:03:23.8]} 34... Qb3 {[%clk 0:03:42]} 35. Qd7 {[%clk 0:03:18.7]} 35...
a3 {[%clk 0:03:38.3]} 36. h5 {[%clk 0:03:17.5]} 36... Qe6 {[%clk 0:03:22.7]} 37.
hxg6+ {[%clk 0:03:14.8]} 37... Qxg6 {[%clk 0:03:21.8]} 38. Qa7 {[%clk
0:03:06.1]} 38... Qb1+ {[%clk 0:03:17]} 39. Kh2 {[%clk 0:03:04.5]} 39... Qb3
{[%clk 0:03:16.9]} 40. Qa8 {[%clk 0:02:56]} 40... Qd3 {[%clk 0:03:06.4]} 41. Qa7
{[%clk 0:02:49.9]} 41... Kg7 {[%clk 0:03:00.5]} 42. Qa5 {[%clk 0:02:41.1]} 42...
Kg6 {[%clk 0:02:53.2]} 43. Kg3 {[%clk 0:02:37.4]} 43... Qb3 {[%clk 0:02:43.3]}
44. Qa6+ {[%clk 0:02:32.2]} 44... f6 {[%clk 0:02:39.4]} 45. Qa8 {[%clk
0:02:23.3]} 45... a2 {[%clk 0:02:38]} 46. Qe8+ {[%clk 0:02:21.5]} 46... Qf7
{[%clk 0:02:36.6]} 47. Qa8 {[%clk 0:02:19.3]} 47... Qc7+ {[%clk 0:02:33]} 48.
Kh3 {[%clk 0:02:10]} 48... Qd7+ {[%clk 0:02:30.2]} 49. g4 {[%clk 0:02:05.9]}
49... Qd5 {[%clk 0:02:27]} 50. Qxd5 {[%clk 0:02:02.9]} 50... a1=Q {[%clk
0:02:20.1]} 51. Qg8# {[%clk 0:02:02]} 1-0

[Event "Live Chess"]
[Site "Chess.com"]
[Date "2024.06.02"]
[Round "-"]
[White "NeilDruggan73"]
[Black "mrsmarple1968"]
[Result "1-0"]
[WhiteElo "1714"]
[BlackElo "1714"]
[TimeControl "300"]
[EndTime "6:34:22 PDT"]
[Termination "NeilDruggan73 won by resignation"]

1. d4 {[%clk 0:04:57.2]} 1... d5 {[%clk 0:04:57.8]} 2. Bg5 {[%clk 0:04:55.8]}
2... Nf6 {[%clk 0:04:54.3]} 3. Bxf6 {[%clk 0:04:51]} 3... exf6 {[%clk
0:04:52.6]} 4. e3 {[%clk 0:04:50.6]} 4... c6 {[%clk 0:04:51.5]} 5. Nd2 {[%clk
0:04:49]} 5... Bd6 {[%clk 0:04:49.6]} 6. Bd3 {[%clk 0:04:47.5]} 6... Be6 {[%clk
0:04:46.5]} 7. Ngf3 {[%clk 0:04:41.6]} 7... Qd7 {[%clk 0:04:43.7]} 8. h3 {[%clk
0:04:39.8]} 8... Bf5 {[%clk 0:04:39.6]} 9. e4 {[%clk 0:04:35.7]} 9... dxe4
{[%clk 0:04:32]} 10. Nxe4 {[%clk 0:04:34]} 10... Bxe4 {[%clk 0:04:24.8]} 11.
Bxe4 {[%clk 0:04:31.8]} 11... Qe7 {[%clk 0:04:22.8]} 12. O-O {[%clk 0:04:30.8]}
12... O-O {[%clk 0:04:15.5]} 13. Re1 {[%clk 0:04:28]} 13... Qc7 {[%clk
0:04:09.3]} 14. c3 {[%clk 0:04:25]} 14... g6 {[%clk 0:04:06.6]} 15. Nh4 {[%clk
0:04:19.4]} 15... Re8 {[%clk 0:03:59.8]} 16. Qc2 {[%clk 0:04:07]} 16... Qd7
{[%clk 0:03:47.5]} 17. Re3 {[%clk 0:04:05.2]} 17... f5 {[%clk 0:03:36.2]} 18.
Nxf5 {[%clk 0:03:49.4]} 18... gxf5 {[%clk 0:03:33.7]} 19. Bxf5 {[%clk
0:03:48.2]} 19... Qd8 {[%clk 0:03:25.3]} 20. Rae1 {[%clk 0:03:36]} 20... Qc7
{[%clk 0:03:15.2]} 21. Rxe8+ {[%clk 0:03:32.2]} 1-0

[Event "Live Chess"]
[Site "Chess.com"]
[Date "2024.06.02"]
[Round "-"]
[White "degringolade64"]
[Black "Queensandpawns"]
[Result "0-1"]
[WhiteElo "2083"]
[BlackElo "2297"]
[TimeControl "300"]
[EndTime "6:34:50 PDT"]
[Termination "Queensandpawns won by resignation"]

1. e4 {[%clk 0:04:55.8]} 1... d5 {[%clk 0:04:57.6]} 2. exd5 {[%clk 0:04:54.6]}
2... c6 {[%clk 0:04:57.5]} 3. dxc6 {[%clk 0:04:51.2]} 3... Nxc6 {[%clk
0:04:57.4]} 4. Nf3 {[%clk 0:04:49.9]} 4... e5 {[%clk 0:04:48.4]} 5. Bb5 {[%clk
0:04:47.7]} 5... e4 {[%clk 0:04:46.6]} 6. Ne5 {[%clk 0:04:35.5]} 6... Qd5 {[%clk
0:04:42.7]} 7. Bxc6+ {[%clk 0:04:33.6]} 7... bxc6 {[%clk 0:04:42.6]} 8. d4
{[%clk 0:04:28.1]} 8... exd3 {[%clk 0:04:40]} 9. Nxd3 {[%clk 0:04:23.8]} 9...
Qxg2 {[%clk 0:04:38.7]} 10. Rf1 {[%clk 0:04:21.9]} 10... Bg4 {[%clk 0:04:37]}
11. Qd2 {[%clk 0:04:19.2]} 11... O-O-O {[%clk 0:04:32.9]} 12. Qa5 {[%clk
0:04:05.1]} 12... Re8+ {[%clk 0:04:22.4]} 13. Ne5 {[%clk 0:04:03.5]} 13... Bb4+
{[%clk 0:04:12.6]} 14. Qxb4 {[%clk 0:03:59.1]} 14... Rxe5+ {[%clk 0:04:11.9]}
15. Be3 {[%clk 0:03:53.7]} 15... Rxe3+ {[%clk 0:04:11.1]} 16. Kd2 {[%clk
0:03:52.2]} 16... Re2+ {[%clk 0:04:07.9]} 17. Kd3 {[%clk 0:03:38.5]} 17... Qf3+
{[%clk 0:04:06.1]} 18. Kc4 {[%clk 0:03:36.5]} 18... Re4+ {[%clk 0:04:05.9]} 0-1

[Event "Live Chess"]
[Site "Chess.com"]
[Date "2024.06.02"]
[Round "-"]
[White "JohanKjeldahl"]
[Black "Dashman93"]
[Result "0-1"]
[WhiteElo "1787"]
[BlackElo "2126"]
[TimeControl "300"]
[EndTime "6:35:08 PDT"]
[Termination "Dashman93 won by resignation"]

1. c4 {[%clk 0:04:57.6]} 1... e5 {[%clk 0:04:58.5]} 2. Nc3 {[%clk 0:04:56.2]}
2... Bb4 {[%clk 0:04:57.9]} 3. e3 {[%clk 0:04:51.9]} 3... Bxc3 {[%clk
0:04:57.2]} 4. dxc3 {[%clk 0:04:49.9]} 4... Nf6 {[%clk 0:04:57.1]} 5. Nf3 {[%clk
0:04:48.3]} 5... O-O {[%clk 0:04:57]} 6. Nxe5 {[%clk 0:04:45.7]} 6... Re8 {[%clk
0:04:56.3]} 7. Nf3 {[%clk 0:04:43.3]} 7... b6 {[%clk 0:04:56]} 8. Be2 {[%clk
0:04:41.7]} 8... Bb7 {[%clk 0:04:55.9]} 9. O-O {[%clk 0:04:40.5]} 9... Nc6
{[%clk 0:04:55.4]} 10. b3 {[%clk 0:04:35.5]} 10... Ne4 {[%clk 0:04:54]} 11. Bb2
{[%clk 0:04:33]} 11... Qf6 {[%clk 0:04:53.4]} 12. Qc2 {[%clk 0:04:25.3]} 12...
Ne5 {[%clk 0:04:51.2]} 13. Nxe5 {[%clk 0:04:20.5]} 13... Rxe5 {[%clk 0:04:48.8]}
14. Bf3 {[%clk 0:04:19.3]} 14... Rae8 {[%clk 0:04:46.8]} 15. Rad1 {[%clk
0:04:14.7]} 15... Rg5 {[%clk 0:04:43.9]} 16. Bxe4 {[%clk 0:04:12]} 16... Bxe4
{[%clk 0:04:42.3]} 0-1

[Event "Live Chess"]
[Site "Chess.com"]
[Date "2024.06.02"]
[Round "-"]
[White "CheckThis4"]
[Black "KeithArkell"]
[Result "1-0"]
[WhiteElo "2691"]
[BlackElo "2434"]
[TimeControl "300"]
[EndTime "6:35:35 PDT"]
[Termination "CheckThis4 won by resignation"]

1. d4 {[%clk 0:04:57.7]} 1... e6 {[%clk 0:04:58.5]} 2. e4 {[%clk 0:04:55.7]}
2... d5 {[%clk 0:04:56.4]} 3. e5 {[%clk 0:04:55.2]} 3... b6 {[%clk 0:04:53.4]}
4. c3 {[%clk 0:04:52.6]} 4... Qd7 {[%clk 0:04:51.2]} 5. Nd2 {[%clk 0:04:33.6]}
5... Ba6 {[%clk 0:04:37.9]} 6. Bxa6 {[%clk 0:04:25.8]} 6... Nxa6 {[%clk
0:04:28.9]} 7. Qg4 {[%clk 0:04:24.2]} 7... Ne7 {[%clk 0:04:26.6]} 8. Ne2 {[%clk
0:04:18.8]} 8... Nf5 {[%clk 0:04:23.4]} 9. Nf3 {[%clk 0:04:13.9]} 9... h5 {[%clk
0:04:21.2]} 10. Qf4 {[%clk 0:04:11.3]} 10... Be7 {[%clk 0:04:18.2]} 11. h4
{[%clk 0:04:09.6]} 11... c5 {[%clk 0:04:12.1]} 12. a3 {[%clk 0:04:06.5]} 12...
Nb8 {[%clk 0:04:07.8]} 13. O-O {[%clk 0:04:04.7]} 13... Nc6 {[%clk 0:04:06.5]}
14. Ng3 {[%clk 0:03:51.4]} 14... g6 {[%clk 0:04:02.8]} 15. b4 {[%clk 0:03:19.6]}
15... cxd4 {[%clk 0:03:52]} 16. cxd4 {[%clk 0:03:18.3]} 16... Kf8 {[%clk
0:03:47.3]} 17. Bd2 {[%clk 0:03:05.4]} 17... Kg7 {[%clk 0:03:45.5]} 18. Rac1
{[%clk 0:03:02.9]} 18... Rac8 {[%clk 0:03:38.7]} 19. Nxf5+ {[%clk 0:02:59.3]}
19... exf5 {[%clk 0:03:32]} 20. e6 {[%clk 0:02:39.8]} 20... Qxe6 {[%clk
0:03:29]} 21. Rfe1 {[%clk 0:02:37.5]} 21... Qd6 {[%clk 0:03:27.7]} 22. b5 {[%clk
0:02:24.6]} 22... Na5 {[%clk 0:03:20.7]} 23. Ne5 {[%clk 0:01:45.8]} 23... Nc4
{[%clk 0:03:11.5]} 24. Bb4 {[%clk 0:01:40.7]} 24... Qc7 {[%clk 0:01:54.4]} 25.
Bxe7 {[%clk 0:01:31.1]} 25... Qxe7 {[%clk 0:01:52.8]} 26. Nxc4 {[%clk
0:01:28.3]} 26... Qf8 {[%clk 0:01:43.1]} 27. Nd6 {[%clk 0:01:21.9]} 27... Rxc1
{[%clk 0:01:40.4]} 28. Rxc1 {[%clk 0:01:21.4]} 28... Qe7 {[%clk 0:01:39]} 29.
Qe5+ {[%clk 0:01:19.8]} 29... Qxe5 {[%clk 0:01:38]} 30. dxe5 {[%clk 0:01:19.7]}
30... g5 {[%clk 0:01:32.4]} 31. hxg5 {[%clk 0:01:17.6]} 31... Kg6 {[%clk
0:01:31.9]} 32. f4 {[%clk 0:01:16.5]} 1-0

[Event "Live Chess"]
[Site "Chess.com"]
[Date "2024.06.02"]
[Round "-"]
[White "GEMdzq"]
[Black "gobbles19"]
[Result "1-0"]
[WhiteElo "2307"]
[BlackElo "2213"]
[TimeControl "300"]
[EndTime "6:35:37 PDT"]
[Termination "GEMdzq won by resignation"]

1. Nf3 {[%clk 0:04:56.9]} 1... d5 {[%clk 0:04:54.2]} 2. c4 {[%clk 0:04:55.5]}
2... e6 {[%clk 0:04:49.2]} 3. d4 {[%clk 0:04:53]} 3... Nf6 {[%clk 0:04:46]} 4.
Bg5 {[%clk 0:04:51]} 4... Be7 {[%clk 0:04:40.4]} 5. e3 {[%clk 0:04:49.9]} 5...
c6 {[%clk 0:04:38.4]} 6. Nc3 {[%clk 0:04:46.7]} 6... Nbd7 {[%clk 0:04:36.5]} 7.
Bd3 {[%clk 0:04:44.3]} 7... h6 {[%clk 0:04:34.5]} 8. Bh4 {[%clk 0:04:38.7]} 8...
dxc4 {[%clk 0:04:31.6]} 9. Bxc4 {[%clk 0:04:37.6]} 9... b5 {[%clk 0:04:30.9]}
10. Bd3 {[%clk 0:04:36.3]} 10... O-O {[%clk 0:04:29.9]} 11. O-O {[%clk
0:04:34.7]} 11... a6 {[%clk 0:04:29.2]} 12. Rc1 {[%clk 0:04:32.8]} 12... Bb7
{[%clk 0:04:27.5]} 13. Bxf6 {[%clk 0:04:15.6]} 13... Bxf6 {[%clk 0:04:22.9]} 14.
Ne4 {[%clk 0:04:14.6]} 14... Be7 {[%clk 0:04:20.4]} 15. Bb1 {[%clk 0:04:11.6]}
15... Rc8 {[%clk 0:04:14.1]} 16. Qd3 {[%clk 0:04:08.5]} 16... g6 {[%clk
0:04:12.4]} 17. Rfd1 {[%clk 0:03:57.9]} 17... Nf6 {[%clk 0:04:08.6]} 18. Nc5
{[%clk 0:03:53.6]} 18... Bxc5 {[%clk 0:03:59]} 19. Rxc5 {[%clk 0:03:53.5]} 19...
a5 {[%clk 0:03:54.8]} 20. h4 {[%clk 0:03:52]} 20... h5 {[%clk 0:03:48.6]} 21.
Ng5 {[%clk 0:03:46.7]} 21... Qe7 {[%clk 0:03:40.6]} 22. Ne4 {[%clk 0:03:42.7]}
22... Ra8 {[%clk 0:03:30.6]} 23. Nxf6+ {[%clk 0:03:36.3]} 23... Qxf6 {[%clk
0:03:30.5]} 24. Rxh5 {[%clk 0:03:34.8]} 24... b4 {[%clk 0:03:29.7]} 25. Rc5
{[%clk 0:03:27.3]} 25... Ba6 {[%clk 0:03:28.5]} 26. Qe4 {[%clk 0:03:24.9]} 26...
Bb5 {[%clk 0:03:22]} 27. Qg4 {[%clk 0:03:22.7]} 27... Rfd8 {[%clk 0:03:08]} 28.
h5 {[%clk 0:03:20.3]} 28... Kg7 {[%clk 0:03:06.4]} 29. hxg6 {[%clk 0:03:17.2]}
29... fxg6 {[%clk 0:03:06.3]} 30. Rg5 {[%clk 0:03:13.5]} 1-0

[Event "Live Chess"]
[Site "Chess.com"]
[Date "2024.06.02"]
[Round "-"]
[White "Tatarinov_Maxim"]
[Black "wadsy27"]
[Result "1-0"]
[WhiteElo "2290"]
[BlackElo "2573"]
[TimeControl "300"]
[EndTime "6:35:55 PDT"]
[Termination "Tatarinov_Maxim won on time"]

1. Nf3 {[%clk 0:04:57.4]} 1... d5 {[%clk 0:04:58.6]} 2. g3 {[%clk 0:04:55.4]}
2... Nf6 {[%clk 0:04:57.9]} 3. Bg2 {[%clk 0:04:54.1]} 3... Bg4 {[%clk
0:04:57.4]} 4. c4 {[%clk 0:04:52.5]} 4... c6 {[%clk 0:04:56.3]} 5. Ne5 {[%clk
0:04:48.9]} 5... Be6 {[%clk 0:04:53.4]} 6. cxd5 {[%clk 0:04:47.6]} 6... Bxd5
{[%clk 0:04:52.6]} 7. Nf3 {[%clk 0:04:46.4]} 7... c5 {[%clk 0:04:51.6]} 8. Nc3
{[%clk 0:04:45]} 8... Bc6 {[%clk 0:04:50.9]} 9. O-O {[%clk 0:04:44.2]} 9... e6
{[%clk 0:04:49.8]} 10. d3 {[%clk 0:04:42.7]} 10... Be7 {[%clk 0:04:49]} 11. a3
{[%clk 0:04:35.9]} 11... O-O {[%clk 0:04:44.7]} 12. Rb1 {[%clk 0:04:33.4]} 12...
b6 {[%clk 0:04:38.9]} 13. b4 {[%clk 0:04:31.9]} 13... cxb4 {[%clk 0:04:36.7]}
14. axb4 {[%clk 0:04:31.8]} 14... Nbd7 {[%clk 0:04:36]} 15. b5 {[%clk
0:04:29.7]} 15... Bb7 {[%clk 0:04:34.6]} 16. Bd2 {[%clk 0:04:17.8]} 16... Rc8
{[%clk 0:04:07.6]} 17. Qb3 {[%clk 0:04:03.4]} 17... Nc5 {[%clk 0:04:04.9]} 18.
Qa2 {[%clk 0:04:02]} 18... Nd5 {[%clk 0:03:51.1]} 19. Nxd5 {[%clk 0:03:43.7]}
19... Bxd5 {[%clk 0:03:47.7]} 20. Qb2 {[%clk 0:03:33.4]} 20... Bf6 {[%clk
0:03:44.6]} 21. Qb4 {[%clk 0:03:32.2]} 21... h6 {[%clk 0:03:22.2]} 22. Rfc1
{[%clk 0:03:28.2]} 22... e5 {[%clk 0:03:18]} 23. Be3 {[%clk 0:03:12.9]} 23... e4
{[%clk 0:03:07.5]} 24. dxe4 {[%clk 0:02:53.6]} 24... Bxe4 {[%clk 0:03:04.1]} 25.
Rd1 {[%clk 0:02:45.8]} 25... Qe7 {[%clk 0:02:29.8]} 26. Rbc1 {[%clk 0:02:37]}
26... Rfd8 {[%clk 0:02:28]} 27. Rxd8+ {[%clk 0:02:32.3]} 27... Rxd8 {[%clk
0:02:26.4]} 28. Nd2 {[%clk 0:02:12]} 28... Bxg2 {[%clk 0:02:19.7]} 29. Kxg2
{[%clk 0:02:11.9]} 29... Qb7+ {[%clk 0:01:58.7]} 30. Nf3 {[%clk 0:02:06.7]}
30... Ne6 {[%clk 0:01:49.1]} 31. Rc6 {[%clk 0:01:53.3]} 31... Nc7 {[%clk
0:01:28]} 32. Bxh6 {[%clk 0:01:37.9]} 32... Nd5 {[%clk 0:01:21.9]} 33. Qg4
{[%clk 0:01:28.1]} 33... Qe7 {[%clk 0:01:18.2]} 34. Rxf6 {[%clk 0:01:13.2]}
34... Qxf6 {[%clk 0:01:15.3]} 35. Bg5 {[%clk 0:01:12.4]} 35... Qg6 {[%clk
0:00:51.2]} 36. Nh4 {[%clk 0:01:09.7]} 36... Qd6 {[%clk 0:00:30.5]} 37. Bxd8
{[%clk 0:01:08.4]} 37... Qxd8 {[%clk 0:00:30.4]} 38. Qd4 {[%clk 0:01:06.6]}
38... Qa8 {[%clk 0:00:23.4]} 39. Nf3 {[%clk 0:01:05]} 39... Nf6 {[%clk
0:00:20.8]} 40. Qc4 {[%clk 0:01:01.3]} 40... Qd5 {[%clk 0:00:18.1]} 41. Qxd5
{[%clk 0:00:59.2]} 41... Nxd5 {[%clk 0:00:18]} 42. Nd4 {[%clk 0:00:58.5]} 42...
Nc3 {[%clk 0:00:17.4]} 43. Kf3 {[%clk 0:00:56.9]} 43... Kf8 {[%clk 0:00:16.7]}
44. Ke3 {[%clk 0:00:55.8]} 44... f6 {[%clk 0:00:15.8]} 45. Kd3 {[%clk
0:00:54.9]} 45... Nd5 {[%clk 0:00:15.2]} 46. Kc4 {[%clk 0:00:52.1]} 46... Ne7
{[%clk 0:00:14.2]} 47. e4 {[%clk 0:00:43.6]} 47... Kf7 {[%clk 0:00:13]} 48. f4
{[%clk 0:00:42.4]} 48... g5 {[%clk 0:00:12.1]} 49. h4 {[%clk 0:00:35.5]} 49...
gxh4 {[%clk 0:00:10.5]} 50. gxh4 {[%clk 0:00:35.4]} 50... Ng6 {[%clk 0:00:09.9]}
51. f5 {[%clk 0:00:33.2]} 51... Nxh4 {[%clk 0:00:09]} 52. Nc6 {[%clk 0:00:33.1]}
52... Nf3 {[%clk 0:00:06.9]} 53. Nxa7 {[%clk 0:00:31.5]} 53... Ke7 {[%clk
0:00:06.5]} 54. Nc8+ {[%clk 0:00:30.1]} 54... Kd7 {[%clk 0:00:05.8]} 55. Nxb6+
{[%clk 0:00:30]} 55... Kd6 {[%clk 0:00:05.3]} 56. Nd5 {[%clk 0:00:28.4]} 56...
Nd2+ {[%clk 0:00:03.4]} 57. Kd3 {[%clk 0:00:27.2]} 57... Nb3 {[%clk 0:00:02.6]}
58. Nxf6 {[%clk 0:00:25.9]} 58... Kc5 {[%clk 0:00:01]} 59. Nd5 {[%clk
0:00:20.7]} 59... Kxb5 {[%clk 0:00:00.9]} 60. f6 {[%clk 0:00:19.5]} 60... Nc5+
{[%clk 0:00:00.8]} 61. Kd4 {[%clk 0:00:18.1]} 61... Kc6 {[%clk 0:00:00.7]} 62.
f7 {[%clk 0:00:16.7]} 62... Ne6+ {[%clk 0:00:00.3]} 63. Ke5 {[%clk 0:00:16.3]}
63... Kd7 {[%clk 0:00:00.1]} 64. Kf6 {[%clk 0:00:13.4]} 1-0